[Event "36th European Club Cup 2021"]
[Site "Struga"]
[Date "2021.09.23"]
[Round "6.55"]
[White "Haria, Ravi"]
[Black "Llobell Cortell, Enrique"]
[Result "1-0"]
[ECO "B11"]
[WhiteElo "2465"]
[BlackElo "2392"]
[Annotator "ChessBase"]
[PlyCount "101"]
[EventDate "2021.09.18"]
[EventType "team-tourn"]
[EventCountry "MKD"]
[SourceTitle "playchess.com"]
[Source "ChessBase"]
[SourceQuality "1"]
[TimeControl "40/5400+30:1800+30"]

1. e4 {[%emt 0:00:05]} c6 {[%emt 0:01:00]} 2. Nf3 {[%emt 0:02:04]} d5 {[%emt 0:
00:26]} 3. Nc3 {[%emt 0:01:02]} Nf6 {[%emt 0:06:57]} 4. e5 {[%emt 0:00:34]} Ne4
{[%emt 0:00:41]} 5. Ne2 {[%emt 0:00:06]} Qb6 {[%emt 0:02:04]} 6. d4 {[%emt 0:
00:06]} e6 {[%emt 0:07:01]} 7. Ng3 {[%emt 0:00:26]} c5 {[%emt 0:00:44]} 8. Bd3
{[%emt 0:00:13]} Nxg3 {[%emt 0:07:35]} 9. fxg3 {[%emt 0:00:22]} h6 {[%emt 0:08:
18]} 10. O-O {[%emt 0:02:35]} Nc6 {[%emt 0:00:56]} 11. Kh1 {[%emt 0:11:49]} Bd7
{[%emt 0:29:13]} 12. dxc5 {[%emt 0:02:32]} Bxc5 {[%emt 0:00:50]} 13. c3 {
[%emt 0:00:13]} Be3 {[%emt 0:06:47]} 14. Qe2 {[%emt 0:01:18]} Bxc1 {[%emt 0:00:
06]} 15. Raxc1 {[%emt 0:00:12]} O-O-O {[%emt 0:00:24]} 16. b4 {[%emt 0:17:32]}
Kb8 {[%emt 0:25:28]} 17. a4 {[%emt 0:03:55]} Rc8 {[%emt 0:00:00]} 18. a5 {
[%emt 0:04:36]} Qd8 {[%emt 0:00:00]} 19. Qe3 {[%emt 0:18:50]} Qe7 {[%emt 0:00:
00]} 20. Nd4 {[%emt 0:16:42]} Nxd4 {[%emt 0:00:00]} 21. Qxd4 {[%emt 0:00:02]}
h5 {[%emt 0:00:00]} 22. h3 {[%emt 0:01:24]} Rhd8 {[%emt 0:00:00]} 23. Kh2 {
[%emt 0:01:54]} Be8 {[%emt 0:00:00]} 24. Be2 {[%emt 0:00:58]} g6 {[%emt 0:00:
00]} 25. a6 {[%emt 0:03:13]} b6 {[%emt 0:00:00]} 26. Qf4 {[%emt 0:02:46]} Rc7 {
[%emt 0:01:25]} 27. b5 {[%emt 0:01:16]} Rdc8 {[%emt 0:01:40]} 28. c4 {[%emt 0:
00:01]} dxc4 {[%emt 0:01:19]} 29. Rxc4 {[%emt 0:00:35]} Rxc4 {[%emt 0:00:55]}
30. Bxc4 {[%emt 0:00:04]} Qb4 {[%emt 0:01:02]} 31. Qf3 {[%emt 0:01:14]} Rc7 {
[%emt 0:00:35]} 32. Rd1 {[%emt 0:01:16]} Bd7 {[%emt 0:00:13]} 33. Be2 {[%emt 0:
01:52]} h4 {[%emt 0:00:48]} 34. gxh4 {[%emt 0:01:08]} Bc8 {[%emt 0:00:16]} 35.
Qg4 {[%emt 0:03:12]} Qc3 {[%emt 0:00:44]} 36. Qe4 {[%emt 0:00:43]} Rc5 {
[%emt 0:00:06]} 37. Rd4 {[%emt 0:00:41]} Kc7 {[%emt 0:00:41]} 38. Rc4 {[%emt 0:
00:58]} Rxc4 {[%emt 0:00:42]} 39. Qxc4+ {[%emt 0:00:06]} Qxc4 {[%emt 0:00:02]}
40. Bxc4 {[%emt 0:00:00]} Kd8 {[%emt 0:00:00]} 41. Kg3 {[%emt 0:02:19]} Ke7 {
[%emt 0:01:23]} 42. Kf4 {[%emt 0:00:17]} f6 {[%emt 0:07:14]} 43. g4 {[%emt 0:
01:12]} Bd7 {[%emt 0:02:27]} 44. exf6+ {[%emt 0:00:18]} Kxf6 {[%emt 0:00:06]}
45. g5+ {[%emt 0:00:04]} Ke7 {[%emt 0:00:05]} 46. Ke5 {[%emt 0:00:02]} Be8 {
[%emt 0:00:06]} 47. Bd3 {[%emt 0:00:07]} Bd7 {[%emt 0:02:43]} 48. Bxg6 {
[%emt 0:01:12]} Bxb5 {[%emt 0:00:06]} 49. h5 {[%emt 0:00:05]} Bxa6 {[%emt 0:02:
23]} 50. h6 {[%emt 0:00:19]} Kf8 {[%emt 0:00:16]} 51. Ke4 {[%emt 0:31:30]} 1-0

[Event "36th European Club Cup 2021"]
[Site "Struga"]
[Date "2021.09.23"]
[Round "6.56"]
[White "Sos Andreu, Eric"]
[Black "O`Donnell, Conor"]
[Result "1-0"]
[ECO "A62"]
[WhiteElo "2355"]
[BlackElo "2303"]
[Annotator "NA"]
[PlyCount "119"]
[EventDate "2021.09.18"]
[EventType "team-tourn"]
[EventCountry "MKD"]
[SourceTitle "playchess.com"]
[Source "ChessBase"]
[SourceQuality "1"]
[TimeControl "40/5400+30:1800+30"]

1. d4 {[%emt 0:00:03]} Nf6 {[%emt 0:00:16]} 2. c4 {[%emt 0:00:09]} e6 {[%emt 0:
00:10]} 3. g3 {[%emt 0:00:19]} c5 {[%emt 0:00:26]} 4. d5 {[%emt 0:00:08]} exd5
{[%emt 0:00:15]} 5. cxd5 {[%emt 0:00:05]} d6 {[%emt 0:02:02]} 6. Nc3 {[%emt 0:
00:07]} g6 {[%emt 0:00:09]} 7. Nf3 {[%emt 0:00:05]} Bg7 {[%emt 0:00:11]} 8. Bg2
{[%emt 0:00:06]} O-O {[%emt 0:00:11]} 9. O-O {[%emt 0:00:06]} Re8 {[%emt 0:01:
56]} 10. Bf4 {[%emt 0:00:09]} Na6 {[%emt 0:01:33]} 11. Re1 {[%emt 0:02:48]} Bg4
{[%emt 0:04:17]} 12. h3 {[%emt 0:08:25]} Bxf3 {[%emt 0:00:16]} 13. Bxf3 {
[%emt 0:00:05]} Nd7 {[%emt 0:01:14]} 14. e4 {[%emt 0:07:24]} Ne5 {[%emt 0:03:
48]} 15. Be2 {[%emt 0:00:18]} Nc7 {[%emt 0:06:55]} 16. Qd2 {[%emt 0:07:51]} Qd7
{[%emt 0:12:18]} 17. Kg2 {[%emt 0:00:29]} f5 {[%emt 0:03:54]} 18. Bf1 {[%emt 0:
02:06]} Rf8 {[%emt 0:04:11]} 19. a4 {[%emt 0:02:43]} a6 {[%emt 0:02:34]} 20.
Rab1 {[%emt 0:03:51]} b5 {[%emt 0:15:28]} 21. b4 {[%emt 0:02:29]} c4 {[%emt 0:
00:25]} 22. Rbd1 {[%emt 0:11:37]} Rab8 {[%emt 0:08:55]} 23. a5 {[%emt 0:02:09]}
Rf7 {[%emt 0:04:12]} 24. Bxe5 {[%emt 0:02:03]} Bxe5 {[%emt 0:00:33]} 25. f4 {
[%emt 0:00:08]} Bxc3 {[%emt 0:01:06]} 26. Qxc3 {[%emt 0:00:04]} fxe4 {[%emt 0:
00:17]} 27. Rxe4 {[%emt 0:00:06]} Qf5 {[%emt 0:06:49]} 28. Qd4 {[%emt 0:00:26]}
Re8 {[%emt 0:01:08]} 29. Rxe8+ {[%emt 0:01:08]} Nxe8 {[%emt 0:00:02]} 30. Be2 {
[%emt 0:00:53]} Qf6 {[%emt 0:04:00]} 31. Bg4 {[%emt 0:03:28]} Qxd4 {[%emt 0:00:
40]} 32. Rxd4 {[%emt 0:00:04]} Rc7 {[%emt 0:02:42]} 33. Bd1 {[%emt 0:05:05]} c3
{[%emt 0:02:39]} 34. Bc2 {[%emt 0:00:08]} Rc4 {[%emt 0:02:51]} 35. Rd3 {
[%emt 0:04:15]} Nf6 {[%emt 0:00:42]} 36. Kf3 {[%emt 0:00:09]} Kf8 {[%emt 0:02:
18]} 37. Ke2 {[%emt 0:00:04]} Rxb4 {[%emt 0:02:51]} 38. Rxc3 {[%emt 0:00:05]}
Rc4 {[%emt 0:02:31]} 39. Rxc4 {[%emt 0:00:46]} bxc4 {[%emt 0:00:03]} 40. Ke3 {
[%emt 0:00:00]} Nxd5+ {[%emt 0:00:00]} 41. Kd4 {[%emt 0:00:48]} Ne7 {[%emt 0:
12:54]} 42. Kxc4 {[%emt 0:00:57]} Nc6 {[%emt 0:00:10]} 43. Be4 {[%emt 0:00:28]}
Nd8 {[%emt 0:03:18]} 44. Bd5 {[%emt 0:06:36]} Ke7 {[%emt 0:01:13]} 45. g4 {
[%emt 0:02:04]} h5 {[%emt 0:03:12]} 46. Kd3 {[%emt 0:05:43]} hxg4 {[%emt 0:01:
53]} 47. hxg4 {[%emt 0:00:11]} Kf6 {[%emt 0:00:07]} 48. Ke4 {[%emt 0:01:42]}
Ke7 {[%emt 0:08:51]} 49. f5 {[%emt 0:08:49]} Kf6 {[%emt 0:02:03]} 50. fxg6 {
[%emt 0:00:20]} Kxg6 {[%emt 0:00:19]} 51. Kf4 {[%emt 0:00:07]} Kf6 {[%emt 0:00:
37]} 52. g5+ {[%emt 0:00:16]} Kg7 {[%emt 0:01:03]} 53. Kf5 {[%emt 0:05:25]} Nf7
{[%emt 0:00:08]} 54. Ke6 {[%emt 0:01:30]} Nxg5+ {[%emt 0:00:32]} 55. Kxd6 {
[%emt 0:01:21]} Kf6 {[%emt 0:01:32]} 56. Bb7 {[%emt 0:02:27]} Nf7+ {[%emt 0:00:
30]} 57. Kc7 {[%emt 0:00:26]} Ke5 {[%emt 0:01:28]} 58. Bxa6 {[%emt 0:00:12]}
Nd6 {[%emt 0:00:48]} 59. Bd3 {[%emt 0:01:16]} Ne8+ {[%emt 0:01:20]} 60. Kc6 {
[%emt 0:00:50]} 1-0

[Event "36th European Club Cup 2021"]
[Site "Struga"]
[Date "2021.09.23"]
[Round "6.57"]
[White "Kanyamarala, Tarun"]
[Black "Pallardo Lozoya, Jose Vicente"]
[Result "1-0"]
[ECO "B13"]
[WhiteElo "2275"]
[BlackElo "2357"]
[Annotator "NA"]
[PlyCount "61"]
[EventDate "2021.09.18"]
[EventType "team-tourn"]
[EventCountry "MKD"]
[SourceTitle "playchess.com"]
[Source "ChessBase"]
[SourceQuality "1"]
[TimeControl "40/5400+30:1800+30"]

1. e4 {[%emt 0:00:04]} c6 {[%emt 0:00:07]} 2. d4 {[%emt 0:00:10]} d5 {[%emt 0:
00:06]} 3. exd5 {[%emt 0:00:10]} cxd5 {[%emt 0:00:16]} 4. Bd3 {[%emt 0:00:10]}
Nc6 {[%emt 0:00:30]} 5. c3 {[%emt 0:00:12]} Nf6 {[%emt 0:01:32]} 6. Bf4 {
[%emt 0:02:01]} Bg4 {[%emt 0:00:17]} 7. Qb3 {[%emt 0:00:09]} Qc8 {[%emt 0:00:
13]} 8. Nd2 {[%emt 0:00:28]} e6 {[%emt 0:00:13]} 9. Ngf3 {[%emt 0:00:23]} Be7 {
[%emt 0:00:18]} 10. O-O {[%emt 0:00:45]} O-O {[%emt 0:00:24]} 11. Ne5 {[%emt 0:
00:56]} Nxe5 {[%emt 0:06:57]} 12. Bxe5 {[%emt 0:01:03]} Bh5 {[%emt 0:02:31]}
13. Rac1 {[%emt 0:00:10]} b6 {[%emt 0:37:56]} 14. c4 {[%emt 0:03:45]} dxc4 {
[%emt 0:04:55]} 15. Rxc4 {[%emt 0:11:33]} Qd8 {[%emt 0:02:53]} 16. Rfc1 {
[%emt 0:02:27]} Bg6 {[%emt 0:08:04]} 17. Be2 {[%emt 0:08:28]} Bd6 {[%emt 0:02:
13]} 18. Bf3 {[%emt 0:11:32]} Rb8 {[%emt 0:02:03]} 19. Nf1 {[%emt 0:03:57]} Qe7
{[%emt 0:08:53]} 20. Rc6 {[%emt 0:08:53]} Rbd8 {[%emt 0:01:05]} 21. Ne3 {
[%emt 0:04:18]} Ne4 {[%emt 0:01:55]} 22. Nc4 {[%emt 0:15:57]} Bxe5 {[%emt 0:01:
26]} 23. dxe5 {[%emt 0:01:13]} Nd2 {[%emt 0:05:39]} 24. Nxd2 {[%emt 0:03:07]}
Rxd2 {[%emt 0:00:01]} 25. Qe3 {[%emt 0:06:56]} Rxb2 {[%emt 0:03:44]} 26. Rc7 {
[%emt 0:00:12]} Qd8 {[%emt 0:01:45]} 27. Rxa7 {[%emt 0:00:12]} Qb8 {[%emt 0:00:
28]} 28. Ra8 {[%emt 0:02:50]} Qxa8 {[%emt 0:00:42]} 29. Bxa8 {[%emt 0:00:06]}
Rxa8 {[%emt 0:00:38]} 30. Qa3 {[%emt 0:00:33]} Rxa2 {[%emt 0:00:15]} 31. Qxa2 {
[%emt 0:00:13]} 1-0

[Event "36th European Club Cup 2021"]
[Site "Struga"]
[Date "2021.09.23"]
[Round "6.59"]
[White "Pein, Jonathan"]
[Black "Torres Sanchez, Jose"]
[Result "0-1"]
[ECO "B40"]
[WhiteElo "2254"]
[BlackElo "2271"]
[Annotator "NA"]
[PlyCount "80"]
[EventDate "2021.09.18"]
[EventType "team-tourn"]
[EventCountry "MKD"]
[SourceTitle "playchess.com"]
[Source "ChessBase"]
[SourceQuality "1"]
[TimeControl "40/5400+30:1800+30"]

1. e4 {[%emt 0:00:03]} c5 {[%emt 0:00:27]} 2. Nf3 {[%emt 0:00:05]} e6 {[%emt 0:
00:47]} 3. g3 {[%emt 0:00:05]} Nc6 {[%emt 0:01:30]} 4. Bg2 {[%emt 0:00:08]} Nf6
{[%emt 0:03:08]} 5. Qe2 {[%emt 0:00:05]} g6 {[%emt 0:09:01]} 6. c3 {[%emt 0:11:
30]} Bg7 {[%emt 0:02:59]} 7. O-O {[%emt 0:02:12]} O-O {[%emt 0:04:33]} 8. d4 {
[%emt 0:01:25]} b6 {[%emt 0:02:52]} 9. Rd1 {[%emt 0:09:17]} cxd4 {[%emt 0:01:
41]} 10. cxd4 {[%emt 0:02:15]} Bb7 {[%emt 0:07:00]} 11. Nc3 {[%emt 0:01:04]} d5
{[%emt 0:12:36]} 12. e5 {[%emt 0:00:31]} Ne8 {[%emt 0:00:23]} 13. Bf4 {[%emt 0:
05:58]} h6 {[%emt 0:02:03]} 14. h4 {[%emt 0:03:10]} Nc7 {[%emt 0:00:26]} 15.
Rac1 {[%emt 0:05:18]} Rc8 {[%emt 0:00:32]} 16. Qe3 {[%emt 0:03:39]} Ne7 {
[%emt 0:00:35]} 17. g4 {[%emt 0:03:07]} h5 {[%emt 0:02:32]} 18. Bh3 {[%emt 0:
18:52]} hxg4 {[%emt 0:01:19]} 19. Bxg4 {[%emt 0:00:05]} Nf5 {[%emt 0:00:45]}
20. Bxf5 {[%emt 0:01:35]} exf5 {[%emt 0:00:09]} 21. Ng5 {[%emt 0:03:21]} Re8 {
[%emt 0:01:48]} 22. Qg3 {[%emt 0:01:06]} Ne6 {[%emt 0:00:19]} 23. Nb5 {[%emt 0:
04:48]} Rxc1 {[%emt 0:03:02]} 24. Bxc1 {[%emt 0:05:11]} Ba6 {[%emt 0:07:07]}
25. Nxf7 {[%emt 0:05:12]} Kxf7 {[%emt 0:01:09]} 26. Nd6+ {[%emt 0:00:01]} Ke7 {
[%emt 0:03:45]} 27. Qa3 {[%emt 0:01:02]} Kf8 {[%emt 0:02:54]} 28. Nxe8+ {
[%emt 0:02:20]} Kxe8 {[%emt 0:00:09]} 29. Qxa6 {[%emt 0:03:12]} Qxh4 {[%emt 0:
00:18]} 30. Qd3 {[%emt 0:03:22]} Qg4+ {[%emt 0:01:21]} 31. Kh2 {[%emt 0:01:00]}
Nxd4 {[%emt 0:01:06]} 32. Qg3 {[%emt 0:04:49]} Qxd1 {[%emt 0:00:13]} 33. Qxg6+
{[%emt 0:00:01]} Kf8 {[%emt 0:00:31]} 34. Qd6+ {[%emt 0:00:45]} Kf7 {[%emt 0:
01:48]} 35. Qxd5+ {[%emt 0:00:28]} Kg6 {[%emt 0:00:23]} 36. Qg2+ {[%emt 0:00:
20]} Kh7 {[%emt 0:00:35]} 37. Be3 {[%emt 0:00:50]} Qh5+ {[%emt 0:04:23]} 38.
Kg1 {[%emt 0:00:02]} Nf3+ {[%emt 0:00:13]} 39. Kf1 {[%emt 0:00:01]} Bxe5 {
[%emt 0:00:31]} 40. b4 {[%emt 0:00:00]} f4 {[%emt 0:00:00]} 0-1

[Event "36th European Club Cup 2021"]
[Site "Struga"]
[Date "2021.09.23"]
[Round "6.60"]
[White "Gimeno Higueras, Roberto"]
[Black "Carroll, Peter"]
[Result "1-0"]
[ECO "B22"]
[WhiteElo "2214"]
[BlackElo "2059"]
[Annotator "NA"]
[PlyCount "67"]
[EventDate "2021.09.18"]
[EventType "team-tourn"]
[EventCountry "MKD"]
[SourceTitle "playchess.com"]
[Source "ChessBase"]
[SourceQuality "1"]
[TimeControl "40/5400+30:1800+30"]

1. e4 {[%emt 0:00:05]} c5 {[%emt 0:00:17]} 2. c3 {[%emt 0:01:00]} Nf6 {[%emt 0:
00:05]} 3. e5 {[%emt 0:00:38]} Nd5 {[%emt 0:00:03]} 4. d4 {[%emt 0:04:32]} cxd4
{[%emt 0:00:31]} 5. Nf3 {[%emt 0:00:49]} Nc6 {[%emt 0:00:02]} 6. cxd4 {[%emt 0:
00:09]} d6 {[%emt 0:00:05]} 7. Bc4 {[%emt 0:01:22]} Nb6 {[%emt 0:00:03]} 8. Bb5
{[%emt 0:00:27]} dxe5 {[%emt 0:00:06]} 9. Nxe5 {[%emt 0:00:08]} Bd7 {[%emt 0:
00:04]} 10. Nxd7 {[%emt 0:01:04]} Qxd7 {[%emt 0:00:02]} 11. O-O {[%emt 0:02:24]
} e6 {[%emt 0:00:05]} 12. Qg4 {[%emt 0:01:47]} h5 {[%emt 0:00:16]} 13. Qe4 {
[%emt 0:01:31]} Qd5 {[%emt 0:02:14]} 14. Nc3 {[%emt 0:05:02]} Qxe4 {[%emt 0:01:
19]} 15. Nxe4 {[%emt 0:00:10]} h4 {[%emt 0:09:55]} 16. Be3 {[%emt 0:03:44]} Rh5
{[%emt 0:01:34]} 17. a4 {[%emt 0:01:03]} a6 {[%emt 0:01:21]} 18. Bxc6+ {
[%emt 0:08:07]} bxc6 {[%emt 0:00:11]} 19. Rfc1 {[%emt 0:00:16]} Kd7 {[%emt 0:
08:31]} 20. Ng5 {[%emt 0:02:09]} f6 {[%emt 0:24:43]} 21. Nxe6 {[%emt 0:00:24]}
Bd6 {[%emt 0:01:26]} 22. a5 {[%emt 0:25:16]} Nc8 {[%emt 0:08:43]} 23. Nc5+ {
[%emt 0:04:25]} Bxc5 {[%emt 0:00:09]} 24. dxc5 {[%emt 0:03:14]} Rd5 {[%emt 0:
00:55]} 25. Ra4 {[%emt 0:00:21]} g5 {[%emt 0:06:08]} 26. Rb4 {[%emt 0:01:46]}
Kc7 {[%emt 0:02:45]} 27. Bd4 {[%emt 0:05:16]} f5 {[%emt 0:03:26]} 28. Bf6 {
[%emt 0:01:18]} f4 {[%emt 0:00:16]} 29. Re4 {[%emt 0:00:20]} Kd7 {[%emt 0:01:
04]} 30. Kf1 {[%emt 0:04:45]} Rb8 {[%emt 0:01:21]} 31. b4 {[%emt 0:00:19]} Rb7
{[%emt 0:01:08]} 32. Ke2 {[%emt 0:02:13]} Rf5 {[%emt 0:00:31]} 33. Rd1+ {
[%emt 0:01:16]} Rd5 {[%emt 0:00:07]} 34. Bxg5 {[%emt 0:00:09]} 1-0

[Event "36th European Club Cup 2021"]
[Site "Struga"]
[Date "2021.09.24"]
[Round "7.6"]
[White "Chatalbashev, Boris"]
[Black "Ponkratov, Pavel"]
[Result "1/2-1/2"]
[ECO "A22"]
[WhiteElo "2530"]
[BlackElo "2657"]
[Annotator "ChessBase"]
[PlyCount "75"]
[EventDate "2021.09.18"]
[EventType "team-tourn"]
[EventCountry "MKD"]
[SourceTitle "playchess.com"]
[Source "ChessBase"]
[SourceQuality "1"]
[TimeControl "40/5400+30:1800+30"]

1. c4 {[%emt 0:00:03]} Nf6 {[%emt 0:00:25]} 2. Nc3 {[%emt 0:00:14]} e5 {
[%emt 0:00:06]} 3. g3 {[%emt 0:00:13]} Bb4 {[%emt 0:02:01]} 4. Bg2 {[%emt 0:00:
08]} O-O {[%emt 0:00:11]} 5. Nf3 {[%emt 0:00:57]} Re8 {[%emt 0:01:51]} 6. O-O {
[%emt 0:02:38]} e4 {[%emt 0:02:03]} 7. Nd4 {[%emt 0:00:39]} Bxc3 {[%emt 0:00:
23]} 8. dxc3 {[%emt 0:04:39]} d6 {[%emt 0:03:15]} 9. f3 {[%emt 0:01:17]} h6 {
[%emt 0:03:45]} 10. g4 {[%emt 0:03:54]} Nh7 {[%emt 0:13:43]} 11. h3 {[%emt 0:
07:49]} Nd7 {[%emt 0:06:16]} 12. f4 {[%emt 0:01:23]} Nb6 {[%emt 0:00:07]} 13.
b3 {[%emt 0:06:01]} f5 {[%emt 0:10:47]} 14. gxf5 {[%emt 0:01:21]} Qf6 {[%emt 0:
00:11]} 15. e3 {[%emt 0:04:56]} Bxf5 {[%emt 0:00:57]} 16. Qh5 {[%emt 0:02:12]}
Bg6 {[%emt 0:04:01]} 17. Qg4 {[%emt 0:01:18]} Bf7 {[%emt 0:03:17]} 18. Bd2 {
[%emt 0:01:25]} c5 {[%emt 0:06:59]} 19. Ne2 {[%emt 0:04:48]} Qe7 {[%emt 0:00:
16]} 20. Ng3 {[%emt 0:04:20]} Nf6 {[%emt 0:00:08]} 21. Nf5 {[%emt 0:01:15]}
Nxg4 {[%emt 0:00:08]} 22. Nxe7+ {[%emt 0:00:05]} Rxe7 {[%emt 0:00:03]} 23. hxg4
{[%emt 0:00:06]} Ree8 {[%emt 0:09:10]} 24. Rad1 {[%emt 0:08:59]} Rad8 {[%emt 0:
02:34]} 25. Kf2 {[%emt 0:12:23]} d5 {[%emt 0:02:35]} 26. cxd5 {[%emt 0:00:23]}
c4 {[%emt 0:00:03]} 27. bxc4 {[%emt 0:03:52]} Nxc4 {[%emt 0:00:05]} 28. Bc1 {
[%emt 0:00:05]} Rxd5 {[%emt 0:01:05]} 29. Rxd5 {[%emt 0:01:35]} Bxd5 {[%emt 0:
00:04]} 30. Rd1 {[%emt 0:00:24]} Nb6 {[%emt 0:00:22]} 31. Ba3 {[%emt 0:06:50]}
Bxa2 {[%emt 0:02:56]} 32. Bc5 {[%emt 0:01:55]} Bc4 {[%emt 0:05:47]} 33. Rd4 {
[%emt 0:06:38]} Bd3 {[%emt 0:00:05]} 34. Rb4 {[%emt 0:00:06]} g5 {[%emt 0:06:
49]} 35. Bxb6 {[%emt 0:04:35]} axb6 {[%emt 0:00:09]} 36. fxg5 {[%emt 0:00:23]}
hxg5 {[%emt 0:00:04]} 37. Rxb6 {[%emt 0:00:13]} Rc8 {[%emt 0:00:05]} 38. Rxb7 {
[%emt 0:05:14]} 1/2-1/2

[Event "36th European Club Cup 2021"]
[Site "Struga"]
[Date "2021.09.24"]
[Round "7.7"]
[White "Harikrishna, Pentala"]
[Black "Korobov, Anton"]
[Result "*"]
[ECO "B53"]
[WhiteElo "2725"]
[BlackElo "2685"]
[Annotator "RC"]
[PlyCount "121"]
[EventDate "2021.09.18"]
[EventType "team-tourn"]
[EventCountry "MKD"]
[SourceTitle "playchess.com"]
[Source "ChessBase"]
[SourceQuality "1"]
[TimeControl "40/5400+30:1800+30"]

1. e4 {[%emt 0:00:04]} c5 {[%emt 0:00:06]} 2. Nf3 {[%emt 0:00:04]} d6 {[%emt 0:
00:09]} 3. d4 {[%emt 0:00:04]} cxd4 {[%emt 0:00:05]} 4. Qxd4 {[%emt 0:00:03]}
Nf6 {[%emt 0:00:28]} 5. Be2 {[%emt 0:00:15]} Nc6 {[%emt 0:03:20]} 6. Qe3 {
[%emt 0:00:27]} g6 {[%emt 0:01:22]} 7. O-O {[%emt 1:33:03]} Bg7 {[%emt 0:00:05]
} 8. h3 {[%emt 0:01:05]} O-O {[%emt 0:01:18]} 9. Rd1 {[%emt 0:00:21]} Nd7 {
[%emt 0:04:03]} 10. Nc3 {[%emt 0:03:26]} a6 {[%emt 0:09:43]} 11. a4 {[%emt 0:
07:39]} b6 {[%emt 0:02:24]} 12. Qf4 {[%emt 0:02:29]} Nb4 {[%emt 0:08:37]} 13.
Qh4 {[%emt 0:12:37]} Nxc2 {[%emt 0:04:47]} 14. Rb1 {[%emt 0:04:37]} Ne5 {
[%emt 0:05:31]} 15. Nxe5 {[%emt 0:09:11]} Bxe5 {[%emt 0:00:12]} 16. Nd5 {
[%emt 0:00:28]} Re8 {[%emt 0:10:37]} 17. Bd3 {[%emt 0:12:37]} Nd4 {[%emt 0:01:
05]} 18. Be3 {[%emt 0:00:49]} Bb7 {[%emt 0:03:33]} 19. Bc4 {[%emt 0:00:32]} b5
{[%emt 0:15:58]} 20. Bxd4 {[%emt 0:10:49]} Bxd4 {[%emt 0:01:04]} 21. axb5 {
[%emt 0:00:08]} Be5 {[%emt 0:12:24]} 22. bxa6 {[%emt 0:03:50]} Bxa6 {[%emt 0:
00:07]} 23. Bxa6 {[%emt 0:00:28]} Rxa6 {[%emt 0:00:02]} 24. b4 {[%emt 0:00:07]}
e6 {[%emt 0:05:30]} 25. Qxd8 {[%emt 0:00:28]} Rxd8 {[%emt 0:00:01]} 26. b5 {
[%emt 0:04:25]} Ra7 {[%emt 0:01:08]} 27. Nb4 {[%emt 0:00:48]} Rb7 {[%emt 0:00:
05]} 28. Nc6 {[%emt 0:03:20]} Ra8 {[%emt 0:00:09]} 29. g3 {[%emt 0:04:47]} Ra4
{[%emt 0:02:48]} 30. f4 {[%emt 0:09:48]} Bf6 {[%emt 0:00:45]} 31. b6 {[%emt 0:
00:40]} Ra6 {[%emt 0:04:59]} 32. Rxd6 {[%emt 0:00:33]} Raxb6 {[%emt 0:00:13]}
33. Rxb6 {[%emt 0:00:32]} Rxb6 {[%emt 0:00:01]} 34. e5 {[%emt 0:01:23]} Rb1+ {
[%emt 0:00:03]} 35. Kg2 {[%emt 0:00:37]} Rb2+ {[%emt 0:00:04]} 36. Kf3 {
[%emt 0:00:34]} Rb3+ {[%emt 0:00:04]} 37. Kg2 {[%emt 0:02:42]} Rb2+ {[%emt 0:
06:10]} 38. Kf1 {[%emt 0:02:10]} Bg7 {[%emt 0:00:06]} 39. Ne7+ {[%emt 0:01:07]}
Kf8 {[%emt 0:00:04]} 40. Nc6 {[%emt 0:00:00]} Kg8 {[%emt 0:00:00]} 41. Rd7 {
[%emt 0:10:16]} Rb6 {[%emt 0:09:02]} 42. Nd8 {[%emt 0:05:57]} f6 {[%emt 0:00:
17]} 43. Re7 {[%emt 0:00:15]} fxe5 {[%emt 0:00:08]} 44. Re8+ {[%emt 0:00:32]}
Bf8 {[%emt 0:00:05]} 45. Nxe6 {[%emt 0:00:48]} Kf7 {[%emt 0:00:05]} 46. Rxf8+ {
[%emt 0:00:08]} Kxe6 {[%emt 0:00:04]} 47. Re8+ {[%emt 0:00:06]} Kf6 {[%emt 0:
00:30]} 48. Rxe5 {[%emt 0:00:39]} h5 {[%emt 0:00:13]} 49. Kf2 {[%emt 0:00:27]}
Ra6 {[%emt 0:00:18]} 50. Kf3 {[%emt 0:00:45]} Ra3+ {[%emt 0:00:11]} 51. Re3 {
[%emt 0:19:45]} Ra4 {[%emt 0:00:09]} 52. Rc3 {[%emt 0:01:15]} Rb4 {[%emt 0:00:
49]} 53. g4 {[%emt 0:00:43]} hxg4+ {[%emt 0:00:15]} 54. hxg4 {[%emt 0:00:05]}
Rb7 {[%emt 0:01:53]} 55. Kg3 {[%emt 0:19:36]} Kf7 {[%emt 0:04:43]} 56. Rc5 {
[%emt 0:00:50]} Rb4 {[%emt 0:00:17]} 57. Rc7+ {[%emt 0:00:13]} Kg8 {[%emt 0:00:
22]} 58. Rd7 {[%emt 0:00:08]} Ra4 {[%emt 0:00:24]} 59. Kf3 {[%emt 0:00:06]} Kf8
{[%emt 0:00:32]} 60. Ke3 {[%emt 0:00:08]} g5 {[%emt 0:00:16]} 61. fxg5 {
[%emt 0:20:22]} *